fUSD/lending_fUSD_20250125
["ID","MTS","AMOUNT","RATE_DAILY","PERIOD"]
[350335019,1737801059355,-500.0,0.00019037,2]
[350335020,1737801059365,-605.60073604,0.00019037,2]
[350335021,1737801059374,-526.93826119,0.00019037,2]
[350335022,1737801059384,-500.0,0.00019037,2]
[350335023,1737801059393,-363.04,0.00019037,2]
[350335024,1737801059402,-500.0,0.00019037,2]
[350335025,1737801059411,-500.0,0.00019037,2]
[350335026,1737801059421,-701.11,0.00019037,2]
[350335027,1737801059430,-500.0,0.00019037,2]
[350335028,1737801059548,-500.0,0.00019037,2]
[350335029,1737801059578,-500.0,0.00019037,2]
[350335030,1737801059588,-500.0,0.00019037,2]
[350335031,1737801059599,-500.0,0.00019037,2]
[350335032,1737801059609,-500.0,0.00019037,2]
[350335033,1737801059619,-416.38818257,0.00019037,2]
[350335034,1737801059628,-500.0,0.00019037,2]
[350335035,1737801059638,-500.0,0.00019037,2]
[350335036,1737801059648,-1000.58,0.00019037,2]
[350335037,1737801059658,-625.73,0.00019037,2]
[350335038,1737801059671,-500.0,0.00019037,2]
[350335039,1737801059681,-500.0,0.00019037,2]
[350335040,1737801059691,-500.0,0.00019037,2]
[350335041,1737801059701,-500.0,0.00019037,2]
[350335042,1737801059711,-500.0,0.00019037,2]
[350335043,1737801059721,-500.0,0.00019037,2]
[350335044,1737801059731,-500.0,0.00019037,2]
[350335045,1737801059740,-500.0,0.00019037,2]
[350335046,1737801059751,-308.24022293,0.00019037,2]
[350335047,1737801059760,-500.0,0.00019037,2]
[350335048,1737801059770,-528.8,0.00019037,2]
[350335049,1737801059779,-978.06,0.00019037,2]
[350335050,1737801059789,-500.0,0.00019037,2]
[350335051,1737801059798,-500.0,0.00019037,2]
[350335052,1737801059808,-500.0,0.00019037,2]
[350335053,1737801059817,-500.0,0.00019037,2]
[350335054,1737801059827,-906.79,0.00019037,2]
[350335055,1737801059836,-500.0,0.00019037,2]
[350335056,1737801059845,-331.47045221,0.00019037,2]
[350335057,1737801059855,-500.0,0.00019037,2]
[350335058,1737801059864,-500.0,0.00019037,2]
[350335059,1737801059874,-500.0,0.00019037,2]
[350335060,1737801059883,-500.0,0.00019037,2]
[350335061,1737801059893,-1000.0,0.00019037,2]
[350335062,1737801059902,-673.31,0.00019037,2]
[350335063,1737801059911,-500.0,0.00019037,2]
[350335064,1737801059921,-500.0,0.00019037,2]
[350335065,1737801059930,-500.0,0.00019037,2]
[350335066,1737801059940,-1232.0,0.00019037,2]
[350335067,1737801059949,-500.0,0.00019037,2]
[350335068,1737801059959,-1286.91,0.00019037,2]
[350335069,1737801059968,-251.24412566,0.00019043,2]
[350335070,1737801059977,-972.16413202,0.00019107,2]
[350335071,1737801059987,-1000.0,0.00019124,2]
[350335072,1737801059997,-500.0,0.00019173,2]
[350335073,1737801060007,-500.0,0.00019173,2]
[350335074,1737801060016,-611.67,0.00019173,2]
[350335075,1737801060026,-641.32,0.00019173,2]
[350335076,1737801060036,-500.0,0.00019173,2]
[350335077,1737801060046,-848.02,0.00019173,2]
[350335078,1737801060056,-619.16,0.00019173,2]
[350335079,1737801060066,-964.88,0.00019173,2]
[350335080,1737801060076,-1172.58,0.00019173,2]
[350335081,1737801060086,-500.0,0.00019173,2]
[350335082,1737801060095,-878.03,0.00019173,2]
[350335083,1737801060105,-500.0,0.00019173,2]
[350335084,1737801060114,-500.0,0.00019173,2]
[350335085,1737801060123,-692.45,0.00019173,2]
[350335086,1737801060132,-500.0,0.00019173,2]
[350335087,1737801060141,-582.41,0.00019173,2]
[350335088,1737801060150,-851.73,0.00019173,2]
[350335089,1737801060160,-500.0,0.00019173,2]
[350335090,1737801060170,-500.0,0.00019173,2]
[350335091,1737801060179,-924.69,0.00019173,2]
[350335092,1737801060188,-632.18,0.00019173,2]
[350335093,1737801060197,-1362.24,0.00019173,2]
[350335094,1737801060206,-500.0,0.00019173,2]
[350335095,1737801060215,-561.04,0.00019173,2]
[350335096,1737801060224,-829.63,0.00019173,2]
[350335097,1737801060234,-936.54,0.00019173,2]
[350335098,1737801060243,-500.0,0.00019173,2]
[350335099,1737801060253,-567.79,0.00019173,2]
[350335100,1737801060262,-853.93,0.00019173,2]
[350335101,1737801060272,-500.0,0.00019173,2]
[350335102,1737801060282,-500.0,0.00019173,2]
[350335103,1737801060291,-500.0,0.00019173,2]
[350335104,1737801060301,-500.0,0.00019173,2]
[350335105,1737801060311,-1838.28,0.00019173,2]
[350335106,1737801060320,-951.63,0.00019173,2]
[350335107,1737801060330,-500.0,0.00019173,2]
[350335108,1737801060340,-555.01,0.00019173,2]
[350335109,1737801060350,-500.0,0.00019173,2]
[350335110,1737801060360,-1085.65,0.00019173,2]
[350335111,1737801060370,-773.41,0.00019173,2]
[350335112,1737801060379,-500.0,0.00019173,2]
[350335113,1737801060389,-500.0,0.00019174,2]
[350335114,1737801060398,-500.0,0.00019174,2]
[350335115,1737801060409,-306.87329635,0.00019174,2]
[350335116,1737801060418,-500.0,0.00019174,2]
[350335117,1737801060428,-460.42624997,0.00019174,2]
[350335118,1737801060437,-500.0,0.00019174,2]
[350335119,1737801060446,-377.18537518,0.00019174,2]
[350335120,1737801060456,-1278.91,0.00019174,2]
[350335121,1737801060465,-500.0,0.00019174,2]
[350335122,1737801060474,-500.0,0.00019174,2]
[350335123,1737801060484,-803.72,0.00019174,2]
[350335124,1737801060493,-1404.19,0.00019174,2]
[350335125,1737801060502,-500.0,0.00019174,2]
[350335126,1737801060512,-500.0,0.00019174,2]
[350335127,1737801060522,-840.11,0.00019174,2]
[350335128,1737801060532,-528.07359677,0.00019174,2]
[350335129,1737801060542,-701.11,0.00019174,2]
[350335130,1737801060552,-518.24,0.00019174,2]
[350335131,1737801060561,-500.0,0.00019174,2]
[350335132,1737801060571,-500.0,0.00019174,2]
[350335133,1737801060580,-500.0,0.00019174,2]
[350335134,1737801060590,-369.20034561,0.00019174,2]
[350335135,1737801060599,-257.71500343,0.00019174,2]
[350335136,1737801060608,-1000.58,0.00019174,2]
[350335137,1737801060618,-625.73,0.00019174,2]
[350335138,1737801060627,-500.0,0.00019174,2]
[350335139,1737801060637,-500.0,0.00019174,2]
[350335140,1737801060646,-500.0,0.00019174,2]
[350335141,1737801060655,-500.0,0.00019174,2]
[350335142,1737801060665,-500.0,0.00019174,2]
[350335143,1737801060678,-978.06,0.00019174,2]
[350335144,1737801060687,-500.0,0.00019174,2]
[350335145,1737801060697,-500.0,0.00019174,2]
[350335146,1737801060706,-500.0,0.00019174,2]
[350335147,1737801060717,-906.79,0.00019174,2]
[350335148,1737801060726,-500.0,0.00019174,2]
[350335149,1737801060736,-500.0,0.00019174,2]
[350335150,1737801060746,-500.0,0.00019174,2]
[350335151,1737801060755,-500.0,0.00019174,2]
[350335152,1737801060765,-500.0,0.00019174,2]
[350335153,1737801060775,-1000.0,0.00019174,2]
[350335154,1737801060785,-673.31,0.00019174,2]
[350335155,1737801060795,-500.0,0.00019174,2]
[350335156,1737801060804,-1232.0,0.00019174,2]
[350335157,1737801060813,-500.0,0.00019174,2]
[350335158,1737801060823,-1286.91,0.00019174,2]
[350335159,1737801060832,-150.43,0.0001919,2]
[350335160,1737801060842,-699.355,0.0001919,2]
[350335161,1737801060851,-569.255,0.0001919,2]
[350335162,1737801060860,-1865.0,0.0001919,2]
[350335163,1737801060869,-1268.152,0.0001919,2]
[350335164,1737801060878,-916.305,0.0001919,2]
[350335165,1737801060887,-2949.0,0.0001919,2]
[350335166,1737801060897,-863.0,0.0001919,2]
[350335167,1737801060906,-150.0,0.0001919,2]
[350335168,1737801060916,-4000.832,0.0001919,2]
[350335169,1737801060925,-539.936,0.0001919,2]
[350335170,1737801060935,-3905.0,0.0001919,2]
[350335171,1737801060944,-1270.0,0.0001919,2]
[350335172,1737801060954,-150.0,0.0001919,2]
[350335173,1737801060963,-972.16413202,0.0001921,2]
[350335174,1737801060973,-500.0,0.0001926,2]
[350335175,1737801060982,-684.18956319,0.00019281,2]
[350335176,1737801060992,-5094.72445549,0.0001929,2]
[350335177,1737801061001,-500.0,0.0001931,2]
[350335178,1737801061011,-500.0,0.0001931,2]
[350335179,1737801061020,-611.67,0.0001931,2]
[350335180,1737801061029,-641.32,0.0001931,2]
[350335181,1737801061038,-447.17420091,0.0001931,2]
[350335182,1737801061048,-848.02,0.0001931,2]
[350335183,1737801061057,-619.16,0.0001931,2]
[350335184,1737801061066,-964.88,0.0001931,2]
[350335185,1737801061076,-1172.58,0.0001931,2]
[350335186,1737801061085,-500.0,0.0001931,2]
[350335187,1737801061094,-878.03,0.0001931,2]
[350335188,1737801061103,-500.0,0.0001931,2]
[350335189,1737801061112,-604.27765814,0.0001931,2]
[350335190,1737801061121,-692.45,0.0001931,2]
[350335191,1737801061131,-500.0,0.0001931,2]
[350335192,1737801061140,-582.41,0.0001931,2]
[350335193,1737801061149,-851.73,0.0001931,2]
[350335194,1737801061159,-500.0,0.0001931,2]
[350335195,1737801061168,-478.98733735,0.0001931,2]
[350335196,1737801061177,-924.69,0.0001931,2]
[350335197,1737801061187,-632.18,0.0001931,2]
[350335198,1737801061196,-1362.24,0.0001931,2]
[350335199,1737801061205,-500.0,0.0001931,2]
[350335200,1737801061215,-561.04,0.0001931,2]
[350335201,1737801061224,-829.63,0.0001931,2]
[350335202,1737801061233,-936.54,0.0001931,2]
[350335203,1737801061242,-500.0,0.0001931,2]
[350335204,1737801061252,-567.79,0.0001931,2]
[350335205,1737801061262,-853.93,0.0001931,2]
[350335206,1737801061271,-500.0,0.0001931,2]
[350335207,1737801061281,-500.0,0.0001931,2]
[350335208,1737801061291,-618.89,0.0001931,2]
[350335209,1737801061300,-500.0,0.0001931,2]
[350335210,1737801061310,-1838.28,0.0001931,2]
[350335211,1737801061319,-951.63,0.0001931,2]
[350335212,1737801061329,-500.0,0.0001931,2]
[350335213,1737801061339,-555.01,0.0001931,2]
[350335214,1737801061348,-500.0,0.0001931,2]
[350335215,1737801061358,-1085.65,0.0001931,2]
[350335216,1737801061368,-773.41,0.0001931,2]
[350335217,1737801061377,-500.0,0.0001931,2]
[350335218,1737801061386,-500.0,0.00019311,2]
[350335219,1737801061396,-196.01902898,0.00019311,2]
[350335220,1737801061405,-500.0,0.00019311,2]
[350335221,1737801061415,-500.0,0.00019311,2]
[350335222,1737801061424,-1278.91,0.00019311,2]
[350335223,1737801061433,-500.0,0.00019311,2]
[350335224,1737801061442,-500.0,0.00019311,2]
[350335225,1737801061452,-803.72,0.00019311,2]
[350335226,1737801061462,-1404.19,0.00019311,2]
[350335227,1737801061471,-155.26,0.00019311,2]
[350335228,1737801061480,-500.0,0.00019311,2]
[350335229,1737801061489,-840.11,0.00019311,2]
[350335230,1737801061499,-701.11,0.00019311,2]
[350335231,1737801061508,-500.0,0.00019311,2]
[350335232,1737801061552,-500.0,0.00019311,2]
[350335233,1737801061561,-500.0,0.00019311,2]
[350335234,1737801061570,-1000.58,0.00019311,2]
[350335235,1737801061580,-625.73,0.00019311,2]
[350335236,1737801061589,-500.0,0.00019311,2]
[350335237,1737801061598,-298.56,0.00019311,2]
[350335238,1737801061607,-500.0,0.00019311,2]
[350335239,1737801061616,-500.0,0.00019311,2]
[350335240,1737801061626,-500.0,0.00019311,2]
[350335241,1737801061635,-978.06,0.00019311,2]
[350335242,1737801061644,-500.0,0.00019311,2]
[350335243,1737801061654,-500.0,0.00019311,2]
[350335244,1737801061664,-500.0,0.00019311,2]
[350335245,1737801061679,-906.79,0.00019311,2]
[350335246,1737801061688,-500.0,0.00019311,2]
[350335247,1737801061698,-500.0,0.00019311,2]
[350335248,1737801061709,-500.0,0.00019311,2]
[350335249,1737801061718,-500.0,0.00019311,2]
[350335250,1737801061728,-1000.0,0.00019311,2]
[350335251,1737801061738,-673.31,0.00019311,2]
[350335252,1737801061749,-589.48,0.00019311,2]
[350335253,1737801061759,-1232.0,0.00019311,2]
[350335254,1737801061768,-500.0,0.00019311,2]
[350335255,1737801061778,-1286.91,0.00019311,2]
[350335256,1737801061789,-972.16413202,0.00019314,2]
[350335257,1737801061800,-151.0,0.00019339,2]
[350335258,1737801061810,-637.83,0.00019339,2]
[350335259,1737801061819,-999.99,0.00019339,2]
[350335260,1737801061828,-9999.99,0.00019339,2]
[350335261,1737801061838,-9989.48,0.00019339,2]
[350335262,1737801061848,-1445.59,0.00019339,2]
[350335263,1737801061857,-1113.31,0.00019339,2]
[350335264,1737801061867,-328.52,0.00019339,2]
[350335265,1737801061875,-150.99,0.00019339,2]
[350335266,1737801061884,-292.48,0.00019339,2]
[350335267,1737801061894,-150.99,0.00019339,2]
[350335268,1737801061903,-466.62,0.00019339,2]
[350335269,1737801061912,-1706.3,0.00019339,5]
[350335270,1737801061921,-55434.74,0.00019339,2]
[350335271,1737801061931,-9999.99,0.00019339,2]
[350335272,1737801061940,-9999.99,0.00019339,2]
[350335273,1737801061949,-3484.47,0.00019339,2]
[350335274,1737801061958,-9999.99,0.00019339,2]
[350335275,1737801061967,-727.73994337,0.00019351,2]
[350335276,1737801061978,-1276.83,0.00019352,2]
[350335277,1737801061988,-251.24412566,0.00019353,2]
[350335278,1737801061997,-4818.18271772,0.00019354,2]
[350335279,1737801062008,-19793.6405392,0.00019357,2]
[350335280,1737801062018,-8154.31157858,0.00019358,2]
[350335281,1737801062027,-8154.31157858,0.00019363,2]
[350335282,1737801062038,-4414.63241063,0.00019381,2]
[350335283,1737801062047,-6661.94861594,0.00019386,2]
[350335284,1737801062057,-408.74993111,0.00019387,2]
[350335285,1737801062067,-4818.18271772,0.00019394,2]
[350335286,1737801062077,-200.0,0.00019396,2]
[350335287,1737801062089,-4414.63241063,0.000194,2]
[350335288,1737801062098,-4818.18271772,0.00019403,2]
[350335289,1737801062107,-4818.18271772,0.00019404,2]
[350335290,1737801062116,-408.74993111,0.00019406,2]
[350335291,1737801062126,-8154.31157858,0.00019408,2]
[350335292,1737801062135,-19793.6405392,0.00019415,2]
[350335293,1737801062145,-972.16413202,0.00019417,2]
[350335294,1737801062154,-874.87,0.0001942,2]
[350335295,1737801062163,-200.0,0.00019425,2]
[350335296,1737801062173,-408.74993111,0.00019427,2]
[350335297,1737801062182,-19793.6405392,0.00019429,2]
[350335298,1737801062191,-19793.6405392,0.00019436,2]
[350335299,1737801062200,-408.74993111,0.00019436,2]
[350335300,1737801062209,-727.73994337,0.00019442,2]
[350335301,1737801062219,-6661.94861594,0.00019444,2]
[350335302,1737801062229,-500.0,0.00019447,2]
[350335303,1737801062238,-193.29792834,0.00019447,2]
[350335304,1737801062247,-611.67,0.00019447,2]
[350335305,1737801062256,-641.32,0.00019447,2]
[350335306,1737801062265,-848.02,0.00019447,2]
[350335307,1737801062274,-619.16,0.00019447,2]
[350335308,1737801062283,-964.88,0.00019447,2]
[350335309,1737801062292,-1172.58,0.00019447,2]
[350335310,1737801062303,-268.02472895,0.00019447,2]
[350335311,1737801062312,-878.03,0.00019447,2]
[350335312,1737801062322,-500.0,0.00019447,2]
[350335313,1737801062331,-692.45,0.00019447,2]
[350335314,1737801062340,-318.1380022,0.00019447,2]
[350335315,1737801062350,-582.41,0.00019447,2]
[350335316,1737801062359,-851.73,0.00019447,2]
[350335317,1737801062368,-500.0,0.00019447,2]
[350335318,1737801062378,-924.69,0.00019447,2]
[350335319,1737801062387,-632.18,0.00019447,2]
[350335320,1737801062396,-1362.24,0.00019447,2]
[350335321,1737801062407,-500.0,0.00019447,2]
[350335322,1737801062416,-561.04,0.00019447,2]
[350335323,1737801062426,-829.63,0.00019447,2]
[350335324,1737801062435,-936.54,0.00019447,2]
[350335325,1737801062445,-316.1,0.00019447,2]
[350335326,1737801062454,-567.79,0.00019447,2]
[350335327,1737801062463,-853.93,0.00019447,2]
[350335328,1737801062473,-500.0,0.00019447,2]
[350335329,1737801062482,-500.0,0.00019447,2]
[350335330,1737801062491,-500.0,0.00019447,2]
[350335331,1737801062501,-1838.28,0.00019447,2]
[350335332,1737801062511,-951.63,0.00019447,2]
[350335333,1737801062521,-500.0,0.00019447,2]
[350335334,1737801062530,-555.01,0.00019447,2]
[350335335,1737801062540,-500.0,0.00019447,2]
[350335336,1737801062550,-1085.65,0.00019447,2]
[350335337,1737801062559,-773.41,0.00019447,2]
[350335338,1737801062569,-500.0,0.00019447,2]
[350335339,1737801062578,-451.50550839,0.00019448,2]
[350335340,1737801062588,-558.09529832,0.00019448,2]
[350335341,1737801062597,-544.08837452,0.00019448,2]
[350335342,1737801062607,-1278.91,0.00019448,2]
[350335343,1737801062616,-500.0,0.00019448,2]
[350335344,1737801062625,-497.01490279,0.00019448,2]
[350335345,1737801062635,-803.72,0.00019448,2]
[350335346,1737801062644,-1404.19,0.00019448,2]
[350335347,1737801062654,-500.0,0.00019448,2]
[350335348,1737801062664,-840.11,0.00019448,2]
[350335349,1737801062677,-701.11,0.00019448,2]
[350335350,1737801062686,-500.0,0.00019448,2]
[350335351,1737801062695,-500.0,0.00019448,2]
[350335352,1737801062705,-500.0,0.00019448,2]
[350335353,1737801062714,-1000.58,0.00019448,2]
[350335354,1737801062724,-625.73,0.00019448,2]
[350335355,1737801062735,-500.0,0.00019448,2]
[350335356,1737801062745,-500.0,0.00019448,2]
[350335357,1737801062755,-368.24,0.00019448,2]
[350335358,1737801062765,-500.0,0.00019448,2]
[350335359,1737801062775,-978.06,0.00019448,2]
[350335360,1737801062784,-500.0,0.00019448,2]
[350335361,1737801062794,-500.0,0.00019448,2]
[350335362,1737801062803,-616.57393588,0.00019448,2]
[350335363,1737801062813,-906.79,0.00019448,2]
[350335364,1737801062823,-500.0,0.00019448,2]
[350335365,1737801062832,-500.0,0.00019448,2]
[350335366,1737801062842,-500.0,0.00019448,2]
[350335367,1737801062853,-673.31,0.00019448,2]
[350335368,1737801062864,-1232.0,0.00019448,2]
[350335369,1737801062874,-500.0,0.00019448,2]
[350335370,1737801062885,-1286.91,0.00019448,2]
[350335371,1737801062894,-8154.31157858,0.0001945,2]
[350335372,1737801062903,-4818.18271772,0.00019451,2]
[350335373,1737801062913,-727.73994337,0.00019454,2]
[350335374,1737801062923,-6661.94861594,0.00019455,2]
[350335375,1737801062932,-6661.94861594,0.00019468,2]
[350335376,1737801062942,-4414.63241063,0.00019471,2]
[350335377,1737801062951,-19793.6405392,0.00019475,2]
[350335378,1737801062961,-169.61801586,0.00019476,2]
[350335379,1737801062971,-408.74993111,0.00019477,2]
[350335380,1737801062981,-8154.31157858,0.00019481,2]
[350335381,1737801062991,-4414.63241063,0.0001949,2]
[350335382,1737801063000,-4414.63241063,0.00019491,2]
[350335383,1737801063010,-6661.94861594,0.00019491,2]
[350335384,1737801063019,-727.73994337,0.00019492,2]
[350335385,1737801063029,-727.73994337,0.00019497,2]
[350335386,1737801063038,-972.16413202,0.00019521,2]
[350335387,1737801063048,-500.0,0.00019584,2]
[350335388,1737801063059,-611.67,0.00019584,2]
[350335389,1737801063068,-641.32,0.00019584,2]
[350335390,1737801063078,-848.02,0.00019584,2]
[350335391,1737801063087,-619.16,0.00019584,2]
[350335392,1737801063097,-964.88,0.00019584,2]
[350335393,1737801063107,-1172.58,0.00019584,2]
[350335394,1737801063117,-878.03,0.00019584,2]
[350335395,1737801063127,-500.0,0.00019584,2]
[350335396,1737801063137,-692.45,0.00019584,2]
[350335397,1737801063147,-582.41,0.00019584,2]
[350335398,1737801063156,-851.73,0.00019584,2]
[350335399,1737801063166,-500.0,0.00019584,2]
[350335400,1737801063176,-924.69,0.00019584,2]
[350335401,1737801063186,-632.18,0.00019584,2]
[350335402,1737801063195,-1362.24,0.00019584,2]
[350335403,1737801063205,-500.0,0.00019584,2]
[350335404,1737801063215,-561.04,0.00019584,2]
[350335405,1737801063224,-829.63,0.00019584,2]
[350335406,1737801063234,-936.54,0.00019584,2]
[350335407,1737801063244,-567.79,0.00019584,2]
[350335408,1737801063254,-853.93,0.00019584,2]
[350335409,1737801063264,-500.0,0.00019584,2]
[350335410,1737801063274,-500.0,0.00019584,2]
[350335411,1737801063285,-168.1999346,0.00019584,2]
[350335412,1737801063295,-1838.28,0.00019584,2]
[350335413,1737801063305,-951.63,0.00019584,2]
[350335414,1737801063315,-500.0,0.00019584,2]
[350335415,1737801063327,-555.01,0.00019584,2]
[350335416,1737801063337,-500.0,0.00019584,2]
[350335417,1737801063347,-1085.65,0.00019584,2]
[350335418,1737801063357,-773.41,0.00019584,2]
[350335419,1737801063367,-500.0,0.00019584,2]
[350335420,1737801063377,-1278.91,0.00019585,2]
[350335421,1737801063386,-500.0,0.00019585,2]
[350335422,1737801063395,-803.72,0.00019585,2]
[350335423,1737801063405,-1404.19,0.00019585,2]
[350335424,1737801063415,-500.0,0.00019585,2]
[350335425,1737801063425,-840.11,0.00019585,2]
[350335426,1737801063435,-701.11,0.00019585,2]
[350335427,1737801063445,-558.68,0.00019585,2]
[350335428,1737801063455,-500.0,0.00019585,2]
[350335429,1737801063465,-500.0,0.00019585,2]
[350335430,1737801063475,-1000.58,0.00019585,2]
[350335431,1737801063484,-625.73,0.00019585,2]
[350335432,1737801063495,-526.2,0.00019585,2]
[350335433,1737801063504,-500.0,0.00019585,2]
[350335434,1737801063515,-500.0,0.00019585,2]
[350335435,1737801063526,-978.06,0.00019585,2]
[350335436,1737801063537,-500.0,0.00019585,2]
[350335437,1737801063547,-500.0,0.00019585,2]
[350335438,1737801063558,-906.79,0.00019585,2]
[350335439,1737801063568,-500.0,0.00019585,2]
[350335440,1737801063579,-673.31,0.00019585,2]
[350335441,1737801063589,-1232.0,0.00019585,2]
[350335442,1737801063599,-500.0,0.00019585,2]
[350335443,1737801063609,-1286.91,0.00019585,2]
[350335444,1737801063619,-150.0,0.00019588,2]
[350335445,1737801063629,-771.1,0.00019597,2]
[350335446,1737801063640,-622.824514,0.00019599,2]
[350335447,1737801063650,-150.0,0.00019604,2]
[350335448,1737801063660,-552.06321114,0.00019606,2]
[350335449,1737801063672,-760.7066997,0.00019622,2]
[350335450,1737801063683,-972.16413202,0.00019624,2]
[350335451,1737801063694,-150.0,0.00019638,2]
[350335452,1737801063704,-5094.72445549,0.00019662,2]
[350335453,1737801063718,-251.24412566,0.00019662,2]
[350335454,1737801063729,-150.0,0.00019684,2]
[350335455,1737801063739,-150.02081265,0.0001969,5]
[350335456,1737801063750,-2000.0,0.000197,7]
[350335457,1737801063761,-238.46055237,0.00019721,2]
[350335458,1737801063771,-611.67,0.00019721,2]
[350335459,1737801063782,-641.32,0.00019721,2]
[350335460,1737801063792,-848.02,0.00019721,2]
[350335461,1737801063803,-619.16,0.00019721,2]
[350335462,1737801063814,-964.88,0.00019721,2]
[350335463,1737801063824,-1172.58,0.00019721,2]
[350335464,1737801063834,-878.03,0.00019721,2]
[350335465,1737801063844,-500.0,0.00019721,2]
[350335466,1737801063855,-692.45,0.00019721,2]
[350335467,1737801063865,-582.41,0.00019721,2]
[350335468,1737801063875,-851.73,0.00019721,2]
[350335469,1737801063885,-500.0,0.00019721,2]
[350335470,1737801063895,-924.69,0.00019721,2]
[350335471,1737801063906,-632.18,0.00019721,2]
[350335472,1737801063916,-1362.24,0.00019721,2]
[350335473,1737801063927,-500.0,0.00019721,2]
[350335474,1737801063937,-561.04,0.00019721,2]
[350335475,1737801063947,-829.63,0.00019721,2]
[350335476,1737801063958,-936.54,0.00019721,2]
[350335477,1737801063968,-567.79,0.00019721,2]
[350335478,1737801063979,-853.93,0.00019721,2]
[350335479,1737801063989,-500.0,0.00019721,2]
[350335480,1737801064000,-642.66,0.00019721,2]
[350335481,1737801064012,-1838.28,0.00019721,2]
[350335482,1737801064023,-951.63,0.00019721,2]
[350335483,1737801064032,-500.0,0.00019721,2]
[350335484,1737801064043,-555.01,0.00019721,2]
[350335485,1737801064054,-500.0,0.00019721,2]
[350335486,1737801064064,-1085.65,0.00019721,2]
[350335487,1737801064075,-773.41,0.00019721,2]
[350335488,1737801064085,-466.16,0.00019721,2]
[350335489,1737801064095,-1278.91,0.00019722,2]
[350335490,1737801064105,-500.0,0.00019722,2]
[350335491,1737801064116,-803.72,0.00019722,2]
[350335492,1737801064126,-1404.19,0.00019722,2]
[350335493,1737801064136,-236.39750102,0.00019722,2]
[350335494,1737801064147,-840.11,0.00019722,2]
[350335495,1737801064158,-701.11,0.00019722,2]
[350335496,1737801064168,-500.0,0.00019722,2]
[350335497,1737801064178,-500.0,0.00019722,2]
[350335498,1737801064188,-1000.58,0.00019722,2]
[350335499,1737801064198,-625.73,0.00019722,2]
[350335500,1737801064208,-500.0,0.00019722,2]
[350335501,1737801064218,-211.64,0.00019722,2]
[350335502,1737801064229,-978.06,0.00019722,2]
[350335503,1737801064239,-500.0,0.00019722,2]
[350335504,1737801064249,-500.0,0.00019722,2]
[350335505,1737801064259,-906.79,0.00019722,2]
[350335506,1737801064390,-500.0,0.00019722,2]
[350335507,1737801064400,-673.31,0.00019722,2]
[350335508,1737801064410,-1232.0,0.00019722,2]
[350335509,1737801064420,-500.0,0.00019722,2]
[350335510,1737801064430,-1286.91,0.00019722,2]
[350335511,1737801064439,-972.16413202,0.00019728,2]
[350335512,1737801064450,-300.0,0.0001978,2]
[350335513,1737801064459,-189845.53388509,0.000198,4]
[350335514,1737801064468,-2600.0,0.000198,7]
[350335515,1737801064479,-1000.0,0.000198,2]
[350335516,1737801064488,-972.16413202,0.00019831,2]
[350335517,1737801064497,-500.0,0.00019839,2]
[350335518,1737801064507,-500.0,0.0001984,2]